Cogmind - Beta 13 @@@ ROGUE MODE // 2024.04.25 @ 22:40:38 Player: Calliope Result: Destroyed by D-53 Grenadier with Mini Grenade Launcher Performance ------------- Evolutions (0) 0 Regions Visited (2) 400 Robots Destroyed (8) 40 Value Destroyed (149) 149 Prototype IDs (0) 0 Alien Tech Used (0) 0 Bonus (0) 0 TOTAL SCORE: 589 Bonus ------- None Cogmind --------- Core Integrity 0/250 Matter 300/300 Energy 100/100 System Corruption 0% Temperature Cool (0) Movement Walking (120) Location -10/Mines Parts ------- > --- POWER (1) -------- (None) > --- PROPULSION (2) --- Aluminum Leg > --- UTILITY (2) ------ (None) > --- WEAPON (2) ------- (None) > --- INVENTORY (5) ---- Light Treads Sensor Array Improved Targeting Computer Grenade Launcher Mining Laser Peak State ------------ > --- POWER ------------ Light Ion Engine > --- PROPULSION ------- Light Treads Light Treads > --- UTILITY ---------- Small Storage Unit Improved Targeting Computer > --- WEAPON ----------- Heavy EM Pulse Gun Heavy EM Pulse Gun > --- INVENTORY -------- Ion Engine Aluminum Leg Aluminum Leg Sensor Array Sensor Array Improved Targeting Computer Light Assault Rifle Maul [Rating: 11] Favorites ----------- Power Light Ion Engine Engine Light Ion Engine Propulsion Light Treads Treads Light Treads Leg Aluminum Leg Utility Small Storage Unit Device Sensor Array Storage Small Storage Unit Processor Improved Targeting Computer Weapon Heavy EM Pulse Gun Energy Gun Heavy EM Pulse Gun Ballistic Gun Light Assault Rifle Build | -11 -10 -10 ------- Run | Yrd Mat Min Slots Evolved . | . . . Power . | . . . Propulsion . | . . . Utility . | . . . Weapon . | . . . Parts Attached 13 | 6 4 3 Power 2 | 1 . 1 Engine 2 | 1 . 1 Core . | . . . Reactor . | . . . Propulsion 4 | 2 . 2 Treads 2 | 2 . . Leg 2 | . . 2 Wheel . | . . . Hover . | . . . Flight . | . . . Utility 3 | 1 2 . Device 1 | . 1 . Storage 1 | 1 . . Processor 1 | . 1 . Hackware . | . . . Protection . | . . . Artifact . | . . . Weapon 4 | 2 2 . Energy Gun 3 | 1 2 . Energy Cannon . | . . . Ballistic Gun 1 | 1 . . Ballistic Cannon . | . . . Launcher . | . . . Special Weapon . | . . . Impact Weapon . | . . . Slashing Weapon . | . . . Piercing Weapon . | . . . Special Melee Weapon . | . . . Unidentified Prototypes . | . . . Parts Lost 7 | . . 7 Power 2 | . . 2 Propulsion 2 | . . 2 Utility 1 | . . 1 Weapon 2 | . . 2 Highest Loss Streak 7 | . . 7 To Critical Strikes . | . . . Average Slot Usage (%) 97 | . 99 95 Engine 13 | . 14 13 Treads 26 | . 28 25 Device 1 | . 3 . Storage 14 | . 14 14 Processor 11 | . 10 12 Energy Gun 24 | . 24 25 Ballistic Gun 1 | . 3 . Naked Turns . | . . . Heaviest Build 15 | 11 15 14 Greatest Support 40 | 40 40 40 Greatest Overweight (x) . | . . . Average Overweight (x) . | . . . Largest Inventory Capacity 8 | 8 8 8 Average Capacity 7 | 6 8 7 Most Carried 8 | 6 8 8 Average Carried 7 | 2 7 7 Final Capacity 8 | 8 8 5 Final Carried 8 | 6 8 5 Class Distribution -------------------- 100% | Mutant Dominant Class ---------------- Mutant | -10/Materials Mutant | -10/Mines Resources | -11 -10 -10 ----------- Run | Yrd Mat Min Matter Collected 311 | 217 84 10 Remotely . | . . . Salvage Created 318 | . 263 55 Parts 14 | . 14 . Haulers Intercepted . | . . . Recyclers Shooed . | . . . Parts Field Recycled . | . . . Retrieved Matter . | . . . Parts Self-Destructed . | . . . Prevented . | . . . Kills | -11 -10 -10 ------- Run | Yrd Mat Min Combat Hostiles Destroyed 9 | . 5 4 Melee 1 | . . 1 Guns 8 | . 5 3 Classes Destroyed 5 | . 4 1 Recycler 1 | . 1 . Watcher 2 | . 2 . Swarmer 3 | . 3 . Grunt 2 | . 2 . Assembled 4 | . . 4 Best Kill Streak 5 | . 5 3 Combat Bots Only 4 | . 4 3 Max Kills in Single Turn 1 | . 1 1 Gunslinging . | . . . Exploded . | . . . Melee 1 | . . 1 Uniques/NPCs Destroyed . | . . . Combat | -11 -10 -10 -------- Run | Yrd Mat Min Hostile Shots Fired 60 | . 21 39 Missed 10 | . 4 6 Damage Taken 904 | . 144 760 Core 272 | . 48 224 Absorbed by Shields . | . . . Core Remaining (%) 100 | 100 . . Volleys Fired 22 | . 14 8 Largest 2 | . 2 2 Hottest 90 | . 90 90 Shots Fired 44 | . 28 16 Gun 44 | . 28 16 Cannon . | . . . Launcher . | . . . Special . | . . . Kinetic 1 | . 1 . Thermal 1 | . 1 . Explosive . | . . . Electromagnetic 42 | . 26 16 Robot Hit Streak 6 | . 6 4 Robot Miss Streak 4 | . 4 2 Penetration Max . | . . . Secondary Targets 1 | . . 1 Max Gunslinging Chain 1 | . . 1 Shots Hit Robots 23 | . 13 10 Core Hits 20 | . 9 11 Critical Kills . | . . . Critical Parts Destroyed . | . . . Critical Strikes . | . . . Melee Attacks . | . . . Impact . | . . . Slashing . | . . . Piercing . | . . . Sneak Attacks . | . . . Combat Hostiles . | . . . Follow-up Attacks . | . . . Damage Inflicted 410 | . 254 156 Guns 383 | . 254 129 Cannons . | . . . Explosions . | . . . Melee . | . . . Ramming 27 | . . 27 Kinetic . | . . . Thermal 13 | . 13 . Explosive . | . . . Electromagnetic 370 | . 241 129 Impact . | . . . Slashing . | . . . Piercing . | . . . Highest Corruption . | . . . Average Corruption . | . . . Corruption Purged . | . . . Corruption Blocked . | . . . Overload Shots . | . . . Overflow Damage . | . . . Projectiles . | . . . Explosions . | . . . Melee . | . . . Knockbacks . | . . . Impact . | . . . Kinetic . | . . . Secondary . | . . . Self-Inflicted Damage . | . . . Shots . | . . . Rammed 2 | . . 2 Targets Rammed 17 | . . 17 Kicked 15 | . . 15 Crushed . | . . . Highest Temperature 180 | . 180 180 Average Temperature 68 | . 55 91 Received Heat Transfer 9 | . 9 . Siege Activations . | . . . Robots Corrupted . | . . . Combat Hostiles . | . . . Parts Fried . | . . . Impact Corruptions . | . . . Robots Melted . | . . . Combat Hostiles . | . . . Parts Melted . | . . . Heat Transferred 37 | . 37 . Parts Sabotaged . | . . . Parts Stolen . | . . . Parts Stripped . | . . . Power Chain Reactions . | . . . Alert | -11 -10 -10 ------- Run | Yrd Mat Min Peak Influence 143 | . 143 55 Initial 55 | . . 55 Average 55 | . 74 48 Maximum Alert Level . | . . . Low Security (%) 100 | 100 100 100 Level 1 . | . . . Level 2 . | . . . Level 3 . | . . . Level 4 . | . . . Level 5 . | . . . High Security . | . . . Max Security . | . . . Squads Dispatched 1 | . 1 . Investigation . | . . . Extermination . | . . . Reinforcement 1 | . 1 . Assault . | . . . Garrison . | . . . Intercept . | . . . Searches Triggered . | . . . Construction Impeded . | . . . Haulers Reinforced . | . . . Active Scanning Responses . | . . . Cargo Convoy Interrupts . | . . . Stealth | -11 -10 -10 --------- Run | Yrd Mat Min Distress Signals 2 | . 2 . Communications Jammed . | . . . Distress Signals . | . . . Times Spotted 24 | . 9 15 Peak Tracking Total 12 | . 4 12 Tactical Retreats 1 | . . 1 Traps | -11 -10 -10 ------- Run | Yrd Mat Min Traps Triggered . | . . . Indirectly . | . . . Trap Hack Attempts . | . . . Triggered . | . . . Disarmed . | . . . Reprogrammed . | . . . Reused . | . . . Traps Extracted . | . . . Installed . | . . . Triggered . | . . . Machines | -11 -10 -10 ---------- Run | Yrd Mat Min Machines Disabled . | . . . Max in Single Turn . | . . . Machines Repaired . | . . . Machines Dismantled . | . . . Machines Sabotaged . | . . . Overloaded Fab Kills . | . . . Hacking | -11 -10 -10 --------- Run | Yrd Mat Min Machines Accessed 1 | . 1 . Terminals 1 | . 1 . Fabricators . | . . . Repair Stations . | . . . Recycling Units . | . . . Scanalyzers . | . . . Garrison Access . | . . . Total Hacks 4 | . 4 . Successful 4 | . 4 . Failed . | . . . Catastrophic . | . . . Database Lockouts . | . . . Manual 1 | . 1 . Terminals 4 | . 4 . Fabricators . | . . . Repair Stations . | . . . Recycling Units . | . . . Scanalyzers . | . . . Garrison Access . | . . . Terminal Hacks 3 | . 3 . Record 3 | . 3 . Fabricator Hacks . | . . . Repair Station Hacks . | . . . Recycling Unit Hacks . | . . . Scanalyzer . | . . . Garrison Access Hacks . | . . . Unauthorized Hacks 1 | . 1 . Terminals 1 | . 1 . Botnet 1 | . 1 . Fabricators . | . . . Repair Stations . | . . . Recycling Units . | . . . Scanalyzers . | . . . Garrison Access . | . . . Data Cores Recovered . | . . . Used . | . . . Hacking Detections 1 | . 1 . Full Trace Events . | . . . Feedback Events . | . . . Feedback Blocked . | . . . Robot Schematics Acquired . | . . . Robots Built . | . . . Authchips . | . . . Time . | . . . Total Robot Build Rating . | . . . Part Schematics Acquired . | . . . Parts Built . | . . . Authchips . | . . . Time . | . . . Total Part Build Rating . | . . . Parts Repaired . | . . . Time . | . . . Parts Recycled . | . . . Recycled Matter . | . . . Retrieved Matter . | . . . Retrieved Components . | . . . Parts Scanalyzed . | . . . Part Schematics Acquired . | . . . Parts Damaged . | . . . Bothacking | -11 -10 -10 ------------ Run | Yrd Mat Min Used RIF Installer . | . . . Robots Hacked . | . . . Non-combat . | . . . Combat . | . . . Robot Hacks Applied . | . . . Relay Couplers Released . | . . . Fabnet Peak Effective % . | . . . Robots Rewired . | . . . Allies Hacked . | . . . Hacks Repelled . | . . . Allies | -11 -10 -10 -------- Run | Yrd Mat Min Total Allies 1 | . . 1 Largest Group 1 | . . 1 Highest-Rated Group 31 | . . 31 Highest-Rated Ally 31 | . . 31 Total Orders . | . . . Ally Attacks 7 | . . 7 Total Damage 82 | . . 82 Kills 2 | . . 2 Allies Corrupted . | . . . Allies Melted . | . . . Intel | -11 -10 -10 ------- Run | Yrd Mat Min Robot Analysis Total . | . . . Derelict Logs Recovered 1 | . . 1 Drone Launches . | . . . Drone Recoveries . | . . . Exploration | -11 -10 -10 ------------- Run | Yrd Mat Min Turns Passed 754 | 87 345 322 Spaces Moved 386 | 50 169 167 Core 6 | 6 . . Treads 378 | 44 169 165 Legs 2 | . . 2 Wheels . | . . . Hover . | . . . Flight . | . . . Fastest Speed 50 | 50 160 120 Average Speed 158 | 146 160 159 Slowest Speed 160 | 160 160 160 Overloaded Moves . | . . . Propulsion Burnouts . | . . . Robots Hopped . | . . . Cave-ins Triggered . | . . . Exploration Rate (%) 27 | 4 26 51 Regions Visited 2 Branch Regions 1 Pre-discovered Areas . | . . . Known Exits Taken . | . . . Unknown Exits Taken 2 | 1 1 . Scrap Searched . | . . . Spaces Dug . | . . . Terrain Destroyed . | . . . Melee . | . . . Projectile . | . . . AOE . | . . . Terrain Rammed . | . . . Walls Destroyed . | . . . Machines Disabled . | . . . Actions | -11 -10 -10 --------- Run | Yrd Mat Min Total 482 | 61 218 203 Wait 22 | . 17 5 Move 384 | 49 168 167 Hop . | . . . Pick Up 14 | 6 7 1 Fast Attach 10 | 6 4 . Attach 2 | . . 2 Detach . | . . . Swap 1 | . . 1 Drop 10 | . 8 2 Fire 22 | . 14 8 Melee . | . . . Ram . | . . . Kick 15 | . . 15 Crush 2 | . . 2 Escape Stasis . | . . . Rewire . | . . . Trap . | . . . Miscellaneous . | . . . Route ------- -11/Scrapyard -10/Materials -10/Mines History --------- Turn | Location | Event 30 | -11/Scrapyard | Discovered new exit (range 15) 88 | -11/Scrapyard | Entered Materials 305 | -10/Materials | Build established: Mutant 420 | -10/Materials | Discovered new exit (range 9) 433 | -10/Materials | Entered Mines 447 | -10/Mines | Met a Derelict bent on vengeance 449 | -10/Mines | Learned Materials terminal intel 525 | -10/Mines | Received a Mining Laser from a helpful Derelict 689 | -10/Mines | Assembled infested the area 739 | -10/Mines | Core integrity fell below 50% 753 | -10/Mines | Core integrity fell below 20% 755 | -10/Mines | Destroyed by D-53 Grenadier with Mini Grenade Launcher Last Messages --------------- 00737_ The unstable cave ceiling collapses. 00738_ Acquired 1 matter. 00738_ Kicked as-57095 out of the way. 00739_ Acquired 3 matter. 00740_ Kicked as-57095 out of the way. 00742_ Acquired 2 matter. 00742_ Kicked as-57095 out of the way. 00743_ Kicked as-57095. 00745_ Kicked as-57095 out of the way. 00747_ Kicked as-57095. 00749_ as-82913 destroyed. 00749_ Kicked as-57095. 00751_ as-57095 destroyed. 00752_ Aluminum Leg destroyed. 00752_ U-05 Engineer destroyed. 00752_ K-01 Serf collects debris. 00753_ Dropped Sml. Storage Unit. 00754_ Ion Engine destroyed. 00754_ K-01 Serf destroyed. 00755_ The unstable cave ceiling collapses. Map ----- +----------------------------------------------------+ | ## ##???????# ?????????????????????? | | #???????# #????????????????????? | | #???????## ##????????????????????? | | """ #?????????## ##?????????????????????? | | """ ##??????########??????????????????????? | | """ ##??????## ##????????????????????????? | | ##??????# ##?###???????????????????? | | #### ##?????# ## ##??#######?????????? | | ???##### ##?????# #? ##????????? | | ???????## #?????# # #????????? | | ????????## ##???## * ! #???????? | | ?????????# ##### % ! ???????? | | ?????????## ! # #=## ##??????????? | | ??????????## # ????????????????? | | ???????????## #???????????????? | | ????????????# #???????????????? | | ????????????# # ###???????????????? | | ????????????## # d ??????????????????? | | ?????????????### ### # d ##?????????????????? | | ???????????????## ###?? #?????????????????? | | ????????????????####???## #?????????????????? | | ???????????????????????# #?????????????????? | | ???????????????????????# #?????????????????? | | ?????????????????????### ! #?????????????????? | | ?????????????????????# #?????????????????? | | ?????????????????????# @ #?????????????????? | | ????????????????# #?????????????????? | | ???????????? % ##?????????????????? | | ???????????###### ####??????????????????? | | ????????????????## k #?????????????????????? | | ?????????????????#### #?????????????????????? | | ????????????????????## #?????????????????????? | | ?????????????????????#### #?????????????????????? | | ????????????????????????# #?????????????????????? | | ????????????????????????#$ #?????????????????????? | | ????????????????????????# ?????????????????????? | | ???????????????????????? ?????????????????????? | | ???????????????????????? ?????????????????????? | | ???????????????????????? #?????????????????????? | | ???????????????????????? #??????????????????????? | | ????????????????????????? ???????????????????????? | | ?????????????????????????????????????????????????? | | ?????????????????????????????????????????????????? | | ?????????????????????????????????????????????????? | | ?????????????????????????????????????????????????? | | ?????????????????????????????????????????????????? | | | | | | | | | +----------------------------------------------------+ Best States ------------- Heat Dissipation 25 Energy Generation 10 Energy Capacity 250 Matter Stores 300 Matter Capacity 300 Sight Range 16 Robot Scan Range 14 Terrain Scan Density 10 Evasion (%) 40 Targeting Accuracy 6 Recoil Reduction 2 Item Schematics ----------------- None Robot Schematics ------------------ None Fabricated ------------ Nothing Alien Tech Used ----------------- None Achievements -------------- None Challenges ------------ None Game ------ Seed CloakingAnalysisSpear Manual? 0 Play Time 00:12:28 Cumulative 20.2 hours Start 2024.04.22 @ 19:18:02 End 2024.04.25 @ 22:40:38 Sessions 3 Manual Loads 0 Difficulty Rogue Special Mode None Game No. 36 Rogue 34 Adventurer 0 Explorer 2 Win Type - Total 0 Types 0/0/0/0/0/0/0/0/0 Lore% 7 Gallery% 24 Achievement% 23 Wizard Run 0 Options --------- Layout 2 ASCII 0 Keyboard 1 Movement Vi Keybinds 0 Fullscreen 2 Font 32/SmallcapsGlow Map View 50x44 Zoom Use 0% Tactical HUD 1 Map Filters NONE Filters NONE Steam 1 RUN: a5a34627-362e-41d1-928f-3ebce582895d